[Event "*** SCC Grand Prix: Titled Tuesday Blitz"]
[Site "Chess.com"]
[Date "2020.09.08"]
[Round "5"]
[White "nrvisakh"]
[Black "Infernal_XaM"]
[Result "0-1"]
[WhiteElo "2737"]
[BlackElo "2912"]
[TimeControl "180+1"]
[EndTime "10:55:58 PDT"]
[Termination "Infernal_XaM won by resignation"]

1. e4 {[%clk 0:03:00.9]} 1... e5 {[%clk 0:02:58.5]} 2. Nf3 {[%clk 0:03:00.6]}
2... d6 {[%clk 0:02:55.3]} 3. Bc4 {[%clk 0:02:57.7]} 3... c6 {[%clk 0:02:51.6]}
4. O-O {[%clk 0:02:57]} 4... h6 {[%clk 0:02:31.8]} 5. d4 {[%clk 0:02:55]} 5...
Qc7 {[%clk 0:02:31.7]} 6. a4 {[%clk 0:02:53.2]} 6... Nf6 {[%clk 0:02:28.4]} 7.
Nc3 {[%clk 0:02:43.6]} 7... Be7 {[%clk 0:02:28.3]} 8. h3 {[%clk 0:02:42.6]} 8...
Nbd7 {[%clk 0:02:26.9]} 9. Re1 {[%clk 0:02:42.1]} 9... g5 {[%clk 0:02:24.2]} 10.
dxe5 {[%clk 0:02:36.8]} 10... dxe5 {[%clk 0:02:23.1]} 11. Nh2 {[%clk 0:02:33.2]}
11... Nf8 {[%clk 0:02:21.2]} 12. Ba2 {[%clk 0:01:36.9]} 12... Ng6 {[%clk
0:02:19.1]} 13. Qd3 {[%clk 0:01:36.9]} 13... Nf4 {[%clk 0:02:10.9]} 14. Bxf4
{[%clk 0:01:36.1]} 14... gxf4 {[%clk 0:02:10.5]} 15. Kh1 {[%clk 0:01:28.7]}
15... Rg8 {[%clk 0:01:58.4]} 16. Ne2 {[%clk 0:01:27.6]} 16... Rg7 {[%clk
0:01:55]} 17. Ng1 {[%clk 0:01:26.2]} 17... Bc5 {[%clk 0:01:51.8]} 18. Rf1 {[%clk
0:01:21.1]} 18... Bd7 {[%clk 0:01:46.7]} 19. b4 {[%clk 0:01:02.7]} 19... Bxb4
{[%clk 0:01:42.7]} 20. Rab1 {[%clk 0:01:00.6]} 20... Bc5 {[%clk 0:01:29.8]} 21.
Ngf3 {[%clk 0:00:58.2]} 21... O-O-O {[%clk 0:01:28]} 22. Qc3 {[%clk 0:00:58.3]}
22... Nxe4 {[%clk 0:01:27.4]} 23. Qxe5 {[%clk 0:00:56.4]} 23... Qxe5 {[%clk
0:01:26.8]} 24. Nxe5 {[%clk 0:00:57.3]} 24... Bxf2 {[%clk 0:01:19.4]} 25. Nhg4
{[%clk 0:00:45.8]} 25... Ng3+ {[%clk 0:01:18.5]} 26. Kh2 {[%clk 0:00:46]} 26...
Nxf1+ {[%clk 0:01:18]} 27. Rxf1 {[%clk 0:00:46.9]} 27... Bxg4 {[%clk 0:01:12.4]}
28. Rxf2 {[%clk 0:00:45.1]} 28... Be6 {[%clk 0:01:10.9]} 29. Bxe6+ {[%clk
0:00:44.4]} 29... fxe6 {[%clk 0:01:11.8]} 30. Nd3 {[%clk 0:00:40.2]} 30... Rd4
{[%clk 0:01:10.4]} 31. Re2 {[%clk 0:00:39]} 31... Rg6 {[%clk 0:01:06.6]} 32. Ne5
{[%clk 0:00:38.7]} 32... Rf6 {[%clk 0:01:06.2]} 33. Ng4 {[%clk 0:00:38.1]} 33...
Rg6 {[%clk 0:01:06.5]} 34. Ne5 {[%clk 0:00:37.9]} 34... Rg8 {[%clk 0:01:03.6]}
35. Nf3 {[%clk 0:00:38]} 35... Rxa4 {[%clk 0:01:03]} 36. Rxe6 {[%clk 0:00:37.7]}
36... Rh8 {[%clk 0:01:03.6]} 37. Nh4 {[%clk 0:00:34.4]} 37... Rc4 {[%clk
0:01:03]} 38. Ng6 {[%clk 0:00:33.6]} 38... Rh7 {[%clk 0:01:02.5]} 39. Re2 {[%clk
0:00:25.6]} 39... a5 {[%clk 0:01:00.3]} 40. Ne5 {[%clk 0:00:23.5]} 40... Rc3
{[%clk 0:01:00.1]} 41. Nd3 {[%clk 0:00:22]} 41... Rf7 {[%clk 0:01:00]} 42. Ne5
{[%clk 0:00:17.8]} 42... Re7 {[%clk 0:00:59.1]} 0-1

[Event "*** SCC Grand Prix: Titled Tuesday Blitz"]
[Site "Chess.com"]
[Date "2020.09.08"]
[Round "5"]
[White "ecwinslow"]
[Black "enriquebutti"]
[Result "0-1"]
[WhiteElo "2282"]
[BlackElo "1827"]
[TimeControl "180+1"]
[EndTime "10:55:58 PDT"]
[Termination "enriquebutti won by resignation"]

1. e4 {[%clk 0:02:58.9]} 1... c5 {[%clk 0:02:58.2]} 2. Nf3 {[%clk 0:02:58.4]}
2... d6 {[%clk 0:02:56.9]} 3. d4 {[%clk 0:02:57.7]} 3... cxd4 {[%clk 0:02:56.7]}
4. Nxd4 {[%clk 0:02:58.3]} 4... Nf6 {[%clk 0:02:56.7]} 5. Nc3 {[%clk 0:02:58.6]}
5... a6 {[%clk 0:02:56.5]} 6. Be2 {[%clk 0:02:55.3]} 6... e6 {[%clk 0:02:55.8]}
7. O-O {[%clk 0:02:54.7]} 7... Be7 {[%clk 0:02:54.9]} 8. f4 {[%clk 0:02:54.4]}
8... O-O {[%clk 0:02:52.3]} 9. Kh1 {[%clk 0:02:52]} 9... Nc6 {[%clk 0:02:51.7]}
10. Be3 {[%clk 0:02:51]} 10... Qc7 {[%clk 0:02:50.6]} 11. a4 {[%clk 0:02:49.9]}
11... Nxd4 {[%clk 0:02:43.7]} 12. Qxd4 {[%clk 0:02:42.6]} 12... e5 {[%clk
0:02:41.9]} 13. Qd3 {[%clk 0:02:41.2]} 13... Be6 {[%clk 0:02:37.7]} 14. f5
{[%clk 0:02:38.4]} 14... Bd7 {[%clk 0:02:36.8]} 15. g4 {[%clk 0:02:32.8]} 15...
Bc6 {[%clk 0:02:29.1]} 16. Bf3 {[%clk 0:02:25.7]} 16... h6 {[%clk 0:02:06.3]}
17. Rg1 {[%clk 0:02:04.6]} 17... Nh7 {[%clk 0:02:02.4]} 18. Rg2 {[%clk
0:02:01.9]} 18... Bg5 {[%clk 0:01:54.6]} 19. Bf2 {[%clk 0:01:54.4]} 19... Qe7
{[%clk 0:01:49.9]} 20. b4 {[%clk 0:01:46.1]} 20... Bh4 {[%clk 0:01:42.3]} 21.
Rd1 {[%clk 0:01:37.3]} 21... Bxf2 {[%clk 0:01:40.4]} 22. Rxf2 {[%clk 0:01:36.2]}
22... Qh4 {[%clk 0:01:31.2]} 23. Rg2 {[%clk 0:01:30.2]} 23... b6 {[%clk
0:01:11.3]} 24. b5 {[%clk 0:01:26.3]} 24... axb5 {[%clk 0:01:10.9]} 25. axb5
{[%clk 0:01:26.2]} 25... Bb7 {[%clk 0:01:10.6]} 26. Qxd6 {[%clk 0:01:18.8]}
26... Ng5 {[%clk 0:01:07.9]} 27. Be2 {[%clk 0:01:05]} 27... Nxe4 {[%clk
0:01:00.5]} 28. Qxb6 {[%clk 0:00:55.7]} 28... Nxc3 {[%clk 0:00:47.2]} 29. Qxb7
{[%clk 0:00:55]} 29... Nxd1 {[%clk 0:00:46.6]} 30. Bxd1 {[%clk 0:00:55.1]} 30...
Ra1 {[%clk 0:00:44.9]} 31. Qd5 {[%clk 0:00:49.3]} 31... Qe1+ {[%clk 0:00:40.5]}
32. Rg1 {[%clk 0:00:48.2]} 32... Qe3 {[%clk 0:00:39.4]} 33. c4 {[%clk
0:00:42.8]} 33... Rc8 {[%clk 0:00:34]} 34. Qd7 {[%clk 0:00:28.9]} 34... Rxc4
{[%clk 0:00:30.3]} 35. Qe8+ {[%clk 0:00:28]} 35... Kh7 {[%clk 0:00:30]} 36. Qxf7
{[%clk 0:00:25.7]} 36... Qe4+ {[%clk 0:00:29.4]} 0-1

[Event "*** SCC Grand Prix: Titled Tuesday Blitz"]
[Site "Chess.com"]
[Date "2020.09.08"]
[Round "5"]
[White "Oligan22"]
[Black "Zarinur"]
[Result "1-0"]
[WhiteElo "2464"]
[BlackElo "2131"]
[TimeControl "180+1"]
[EndTime "10:55:59 PDT"]
[Termination "Oligan22 won by checkmate"]

1. e4 {[%clk 0:02:57.2]} 1... e5 {[%clk 0:02:58]} 2. Nf3 {[%clk 0:02:55.7]} 2...
Nc6 {[%clk 0:02:57.7]} 3. Nc3 {[%clk 0:02:53.7]} 3... Nf6 {[%clk 0:02:56.9]} 4.
a3 {[%clk 0:02:50.5]} 4... a6 {[%clk 0:02:28.9]} 5. d4 {[%clk 0:02:48.9]} 5...
exd4 {[%clk 0:02:27.6]} 6. Nxd4 {[%clk 0:02:49.8]} 6... Bc5 {[%clk 0:02:24.2]}
7. Be3 {[%clk 0:02:45.9]} 7... Bb6 {[%clk 0:02:15.7]} 8. Nf5 {[%clk 0:02:24.1]}
8... Bxe3 {[%clk 0:02:00.8]} 9. Nxe3 {[%clk 0:02:20.6]} 9... O-O {[%clk
0:01:59.8]} 10. Qf3 {[%clk 0:02:17.2]} 10... Nd4 {[%clk 0:01:53.3]} 11. Qg3
{[%clk 0:02:16.5]} 11... d6 {[%clk 0:01:30.7]} 12. f3 {[%clk 0:01:57.7]} 12...
Re8 {[%clk 0:01:25.7]} 13. O-O-O {[%clk 0:01:57.3]} 13... Nc6 {[%clk 0:01:23.2]}
14. Bd3 {[%clk 0:01:54.6]} 14... b5 {[%clk 0:01:21.6]} 15. Qh4 {[%clk
0:01:31.6]} 15... b4 {[%clk 0:01:11.2]} 16. axb4 {[%clk 0:01:32.5]} 16... Nxb4
{[%clk 0:01:11.7]} 17. g4 {[%clk 0:01:26.5]} 17... Nd7 {[%clk 0:00:54]} 18. Qxd8
{[%clk 0:01:09.9]} 18... Rxd8 {[%clk 0:00:54.9]} 19. Ned5 {[%clk 0:01:09.6]}
19... Nxd5 {[%clk 0:00:36.5]} 20. Nxd5 {[%clk 0:01:10.5]} 20... Ne5 {[%clk
0:00:30.8]} 21. Be2 {[%clk 0:00:54.2]} 21... Ra7 {[%clk 0:00:18.7]} 22. f4
{[%clk 0:00:51.1]} 22... Nxg4 {[%clk 0:00:18.5]} 23. Ne7+ {[%clk 0:00:47.4]}
23... Kh8 {[%clk 0:00:15.1]} 24. Nxc8 {[%clk 0:00:44]} 24... Rxc8 {[%clk
0:00:12.6]} 25. Bxg4 {[%clk 0:00:44]} 25... Rb8 {[%clk 0:00:12.4]} 26. e5 {[%clk
0:00:41.1]} 26... dxe5 {[%clk 0:00:11.7]} 27. fxe5 {[%clk 0:00:42]} 27... a5
{[%clk 0:00:12]} 28. Rhf1 {[%clk 0:00:38.8]} 28... Kg8 {[%clk 0:00:10.9]} 29.
Rd7 {[%clk 0:00:38.7]} 29... a4 {[%clk 0:00:10.8]} 30. Rfxf7 {[%clk 0:00:37]}
30... a3 {[%clk 0:00:10]} 31. Rxg7+ {[%clk 0:00:37.1]} 31... Kh8 {[%clk
0:00:08.9]} 32. Rxh7+ {[%clk 0:00:37.4]} 32... Kg8 {[%clk 0:00:09]} 33. Be6+
{[%clk 0:00:38]} 33... Kf8 {[%clk 0:00:09.4]} 34. Rh8# {[%clk 0:00:38.6]} 1-0

[Event "*** SCC Grand Prix: Titled Tuesday Blitz"]
[Site "Chess.com"]
[Date "2020.09.08"]
[Round "5"]
[White "Kotofeyca"]
[Black "Bodnar_Mykola"]
[Result "0-1"]
[WhiteElo "2356"]
[BlackElo "2528"]
[TimeControl "180+1"]
[EndTime "10:56:01 PDT"]
[Termination "Bodnar_Mykola won by checkmate"]

1. d4 {[%clk 0:03:00.9]} 1... Nf6 {[%clk 0:02:58]} 2. c4 {[%clk 0:03:00.6]} 2...
e6 {[%clk 0:02:57.2]} 3. Nf3 {[%clk 0:03:00.3]} 3... b6 {[%clk 0:02:57]} 4. g3
{[%clk 0:03:00.3]} 4... Bb7 {[%clk 0:02:55.7]} 5. Bg2 {[%clk 0:03:00.4]} 5...
Be7 {[%clk 0:02:55.2]} 6. Nc3 {[%clk 0:03:00.4]} 6... O-O {[%clk 0:02:54.8]} 7.
Qc2 {[%clk 0:03:00.6]} 7... c5 {[%clk 0:02:53.6]} 8. dxc5 {[%clk 0:03:00.2]}
8... bxc5 {[%clk 0:02:53.3]} 9. O-O {[%clk 0:03:01.1]} 9... d6 {[%clk
0:02:52.4]} 10. Rd1 {[%clk 0:03:01.5]} 10... Nc6 {[%clk 0:02:49.7]} 11. Bf4
{[%clk 0:02:56.7]} 11... e5 {[%clk 0:02:48.5]} 12. Bg5 {[%clk 0:02:56.6]} 12...
Rb8 {[%clk 0:02:14.4]} 13. e3 {[%clk 0:02:31.9]} 13... Ne8 {[%clk 0:02:05.1]}
14. Bxe7 {[%clk 0:02:27.2]} 14... Qxe7 {[%clk 0:01:59.5]} 15. Nd5 {[%clk
0:02:20.2]} 15... Qd8 {[%clk 0:01:58.9]} 16. Rd2 {[%clk 0:02:10]} 16... Nc7
{[%clk 0:01:58.5]} 17. Nh4 {[%clk 0:02:04.7]} 17... Nxd5 {[%clk 0:01:57.2]} 18.
Bxd5 {[%clk 0:02:04.5]} 18... Nb4 {[%clk 0:01:57.3]} 19. Qa4 {[%clk 0:01:50.7]}
19... Nxd5 {[%clk 0:01:54.6]} 20. cxd5 {[%clk 0:01:51.6]} 20... Qb6 {[%clk
0:01:48.5]} 21. e4 {[%clk 0:01:46.6]} 21... g6 {[%clk 0:01:48]} 22. Ng2 {[%clk
0:01:41.7]} 22... Rfc8 {[%clk 0:01:41.6]} 23. b3 {[%clk 0:01:33.5]} 23... Qb4
{[%clk 0:01:40.1]} 24. Qxb4 {[%clk 0:01:24.9]} 24... cxb4 {[%clk 0:01:41]} 25.
Ne3 {[%clk 0:01:24.6]} 25... Ba6 {[%clk 0:01:40.5]} 26. f3 {[%clk 0:01:17.3]}
26... Rc3 {[%clk 0:01:38.8]} 27. Kf2 {[%clk 0:01:16.9]} 27... Rbc8 {[%clk
0:01:38.2]} 28. Rad1 {[%clk 0:01:12]} 28... Bb5 {[%clk 0:01:37.6]} 29. f4 {[%clk
0:01:09.4]} 29... exf4 {[%clk 0:01:36.4]} 30. gxf4 {[%clk 0:01:09.1]} 30... Re8
{[%clk 0:01:36.3]} 31. Rd4 {[%clk 0:01:04.4]} 31... f5 {[%clk 0:01:32.7]} 32.
Rxb4 {[%clk 0:00:59]} 32... Rxe4 {[%clk 0:01:25.9]} 33. Rxb5 {[%clk 0:00:41.7]}
33... Rcxe3 {[%clk 0:01:24.8]} 34. Rb7 {[%clk 0:00:32.7]} 34... Re2+ {[%clk
0:01:22.6]} 35. Kg3 {[%clk 0:00:19.6]} 35... R4e3+ {[%clk 0:01:21]} 36. Kh4
{[%clk 0:00:19]} 36... h6 {[%clk 0:01:21.4]} 37. Rh1 {[%clk 0:00:13.5]} 37...
Rf2 {[%clk 0:01:20.5]} 38. Rb4 {[%clk 0:00:08.9]} 38... a5 {[%clk 0:01:19.6]}
39. Ra4 {[%clk 0:00:08.2]} 39... Kg7 {[%clk 0:01:15.9]} 40. h3 {[%clk
0:00:07.8]} 40... Kf6 {[%clk 0:01:14.7]} 41. Rg1 {[%clk 0:00:07.8]} 41... Rff3
{[%clk 0:01:13.6]} 42. Rh1 {[%clk 0:00:05.5]} 42... g5+ {[%clk 0:01:11.8]} 43.
fxg5+ {[%clk 0:00:04.9]} 43... hxg5+ {[%clk 0:01:12.7]} 44. Kh5 {[%clk
0:00:05.3]} 44... Re8 {[%clk 0:01:13.6]} 45. Rxa5 {[%clk 0:00:01.4]} 45... Rh8#
{[%clk 0:01:14.5]} 0-1

[Event "*** SCC Grand Prix: Titled Tuesday Blitz"]
[Site "Chess.com"]
[Date "2020.09.08"]
[Round "5"]
[White "renehp"]
[Black "Abdimalik_Abdisalimov"]
[Result "1-0"]
[WhiteElo "2565"]
[BlackElo "2736"]
[TimeControl "180+1"]
[EndTime "10:56:05 PDT"]
[Termination "renehp won by resignation"]

1. e4 {[%clk 0:03:00.9]} 1... c5 {[%clk 0:02:58.8]} 2. Nf3 {[%clk 0:03:00.7]}
2... d6 {[%clk 0:02:58.8]} 3. d4 {[%clk 0:03:01]} 3... cxd4 {[%clk 0:02:59.7]}
4. Nxd4 {[%clk 0:03:01.8]} 4... Nf6 {[%clk 0:03:00.6]} 5. Nc3 {[%clk 0:03:02.1]}
5... a6 {[%clk 0:03:00.6]} 6. Be3 {[%clk 0:03:02.2]} 6... e5 {[%clk 0:03:00.8]}
7. Nb3 {[%clk 0:03:01.2]} 7... Be6 {[%clk 0:03:01.2]} 8. Be2 {[%clk 0:02:59.3]}
8... Nbd7 {[%clk 0:02:52.5]} 9. O-O {[%clk 0:02:33]} 9... Rc8 {[%clk 0:02:51]}
10. Qd3 {[%clk 0:02:28.2]} 10... Bc4 {[%clk 0:02:32.2]} 11. Qd2 {[%clk
0:02:18.3]} 11... Be7 {[%clk 0:02:24]} 12. Rad1 {[%clk 0:02:13.7]} 12... O-O
{[%clk 0:02:22.1]} 13. f3 {[%clk 0:02:13.3]} 13... b5 {[%clk 0:02:18.6]} 14. Rf2
{[%clk 0:02:05.8]} 14... b4 {[%clk 0:01:53.8]} 15. Nd5 {[%clk 0:01:59.3]} 15...
Nxd5 {[%clk 0:01:51]} 16. exd5 {[%clk 0:02:00.2]} 16... a5 {[%clk 0:01:29.7]}
17. Bxc4 {[%clk 0:01:54.9]} 17... Rxc4 {[%clk 0:01:30.6]} 18. Qe2 {[%clk
0:01:54.7]} 18... Rc8 {[%clk 0:01:23.3]} 19. Qb5 {[%clk 0:01:51.9]} 19... Ra8
{[%clk 0:01:21.8]} 20. f4 {[%clk 0:01:47.5]} 20... Qc7 {[%clk 0:00:55.9]} 21.
fxe5 {[%clk 0:01:29.9]} 21... Nxe5 {[%clk 0:00:56.8]} 22. Qe2 {[%clk 0:01:30]}
22... Rfe8 {[%clk 0:00:39.3]} 23. Bc1 {[%clk 0:01:27.6]} 23... Bf8 {[%clk
0:00:30.8]} 24. Qf1 {[%clk 0:01:20.5]} 24... Qb7 {[%clk 0:00:27.8]} 25. h3
{[%clk 0:01:15.8]} 25... a4 {[%clk 0:00:26.1]} 26. Nd4 {[%clk 0:01:12.7]} 26...
Qxd5 {[%clk 0:00:26]} 27. Nf5 {[%clk 0:01:12.8]} 27... Qxa2 {[%clk 0:00:23.4]}
28. Nxd6 {[%clk 0:01:08.6]} 28... Bxd6 {[%clk 0:00:24.3]} 29. Rxd6 {[%clk
0:01:09.5]} 29... Rac8 {[%clk 0:00:24.3]} 30. Rd4 {[%clk 0:00:58.9]} 30... b3
{[%clk 0:00:21.6]} 31. cxb3 {[%clk 0:00:58.9]} 31... axb3 {[%clk 0:00:21.3]} 32.
Rd1 {[%clk 0:00:57.2]} 32... Nc4 {[%clk 0:00:20.5]} 33. Rxf7 {[%clk 0:00:49.4]}
33... Nxb2 {[%clk 0:00:20.7]} 34. Rdd7 {[%clk 0:00:48.6]} 34... Qb1 {[%clk
0:00:14.3]} 35. Rxg7+ {[%clk 0:00:47.5]} 35... Kh8 {[%clk 0:00:14.5]} 36. Rxh7+
{[%clk 0:00:43.4]} 36... Qxh7 {[%clk 0:00:13]} 37. Bxb2+ {[%clk 0:00:43.3]} 1-0

[Event "*** SCC Grand Prix: Titled Tuesday Blitz"]
[Site "Chess.com"]
[Date "2020.09.08"]
[Round "5"]
[White "swimmerchess"]
[Black "Konavets"]
[Result "0-1"]
[WhiteElo "2857"]
[BlackElo "3076"]
[TimeControl "180+1"]
[EndTime "10:56:11 PDT"]
[Termination "Konavets won by resignation"]

1. e4 {[%clk 0:03:00.9]} 1... c6 {[%clk 0:02:59.2]} 2. d4 {[%clk 0:03:00.6]}
2... d5 {[%clk 0:02:58.8]} 3. e5 {[%clk 0:03:01.2]} 3... Bf5 {[%clk 0:02:58.8]}
4. Nf3 {[%clk 0:03:01.6]} 4... e6 {[%clk 0:02:58.7]} 5. Be2 {[%clk 0:03:01.9]}
5... Ne7 {[%clk 0:02:57.8]} 6. O-O {[%clk 0:03:02]} 6... h6 {[%clk 0:02:58.4]}
7. Nbd2 {[%clk 0:03:01.6]} 7... Nd7 {[%clk 0:02:58.7]} 8. Nb3 {[%clk 0:03:01.7]}
8... g5 {[%clk 0:02:58.9]} 9. a4 {[%clk 0:03:01.7]} 9... Qc7 {[%clk 0:02:58.5]}
10. a5 {[%clk 0:03:02]} 10... a6 {[%clk 0:02:58.7]} 11. Be3 {[%clk 0:03:00.6]}
11... Bg7 {[%clk 0:02:56]} 12. Ne1 {[%clk 0:03:00.2]} 12... c5 {[%clk 0:02:52]}
13. c3 {[%clk 0:02:51.4]} 13... Nc6 {[%clk 0:02:52.1]} 14. f4 {[%clk 0:02:44.6]}
14... gxf4 {[%clk 0:02:50.1]} 15. Bxf4 {[%clk 0:02:44]} 15... c4 {[%clk
0:02:49.2]} 16. Nd2 {[%clk 0:02:42.4]} 16... Nxa5 {[%clk 0:02:49.3]} 17. Nc2
{[%clk 0:02:38.9]} 17... Nc6 {[%clk 0:02:41.6]} 18. Ne3 {[%clk 0:02:38.7]} 18...
Ne7 {[%clk 0:02:41.5]} 19. Bh5 {[%clk 0:02:35.5]} 19... Bg6 {[%clk 0:02:27.4]}
20. Qg4 {[%clk 0:02:30.6]} 20... O-O-O {[%clk 0:02:22.1]} 21. Bg3 {[%clk
0:02:23.3]} 21... Rhf8 {[%clk 0:01:51]} 22. Bh4 {[%clk 0:01:59.5]} 22... Nxe5
{[%clk 0:01:50.7]} 23. dxe5 {[%clk 0:01:53.6]} 23... Qxe5 {[%clk 0:01:49.9]} 24.
Bxe7 {[%clk 0:01:34.2]} 24... Bxh5 {[%clk 0:01:49.9]} 25. Qg3 {[%clk 0:01:34.1]}
25... Qxg3 {[%clk 0:01:42.5]} 26. hxg3 {[%clk 0:01:35]} 26... Be2 {[%clk
0:01:33.3]} 27. Bxf8 {[%clk 0:01:29.2]} 27... Rxf8 {[%clk 0:01:31.4]} 28. Rf2
{[%clk 0:01:29.7]} 28... Bd3 {[%clk 0:01:31.8]} 29. b3 {[%clk 0:01:24.7]} 29...
Bxc3 {[%clk 0:01:29.4]} 30. Rc1 {[%clk 0:01:22.8]} 30... Bd4 {[%clk 0:01:29.8]}
31. Rf3 {[%clk 0:01:12]} 31... Be2 {[%clk 0:01:29.2]} 32. Kf2 {[%clk 0:01:09.8]}
32... Bxf3 {[%clk 0:01:29.4]} 33. Nxf3 {[%clk 0:01:10.7]} 33... Bxe3+ {[%clk
0:01:29.9]} 34. Kxe3 {[%clk 0:01:11.6]} 34... b5 {[%clk 0:01:30.3]} 35. b4
{[%clk 0:01:03.1]} 35... Kc7 {[%clk 0:01:20.3]} 36. Rh1 {[%clk 0:01:02]} 36...
Kb6 {[%clk 0:01:09.3]} 37. Ne5 {[%clk 0:00:55.8]} 37... Rg8 {[%clk 0:01:05.7]}
38. g4 {[%clk 0:00:46.9]} 38... a5 {[%clk 0:01:05.7]} 39. bxa5+ {[%clk
0:00:45.3]} 39... Kxa5 {[%clk 0:01:06.6]} 40. Kd4 {[%clk 0:00:45.8]} 40... f6
{[%clk 0:01:03.1]} 41. Kc5 {[%clk 0:00:38.3]} 41... Ka4 {[%clk 0:01:03.4]} 42.
Nc6 {[%clk 0:00:34.2]} 42... e5 {[%clk 0:00:57.3]} 43. Rxh6 {[%clk 0:00:18]}
43... c3 {[%clk 0:00:56.1]} 44. Rh1 {[%clk 0:00:16]} 44... Rxg4 {[%clk
0:00:55.7]} 45. Ra1+ {[%clk 0:00:13.8]} 45... Kb3 {[%clk 0:00:55.6]} 46. Kxd5
{[%clk 0:00:14.4]} 46... c2 {[%clk 0:00:53.9]} 0-1

[Event "*** SCC Grand Prix: Titled Tuesday Blitz"]
[Site "Chess.com"]
[Date "2020.09.08"]
[Round "5"]
[White "2nd_life"]
[Black "Tenamu"]
[Result "1-0"]
[WhiteElo "2538"]
[BlackElo "2366"]
[TimeControl "180+1"]
[EndTime "10:56:12 PDT"]
[Termination "2nd_life won by resignation"]

1. e4 {[%clk 0:03:00.9]} 1... e5 {[%clk 0:02:32.2]} 2. f4 {[%clk 0:02:59.1]}
2... d5 {[%clk 0:02:29.7]} 3. exd5 {[%clk 0:02:58.9]} 3... exf4 {[%clk
0:02:26.3]} 4. Nf3 {[%clk 0:02:59]} 4... Nf6 {[%clk 0:02:22.7]} 5. Nc3 {[%clk
0:02:58.6]} 5... Nxd5 {[%clk 0:02:22]} 6. Nxd5 {[%clk 0:02:58.3]} 6... Qxd5
{[%clk 0:02:22.9]} 7. d4 {[%clk 0:02:58.3]} 7... Bf5 {[%clk 0:02:21.5]} 8. Bxf4
{[%clk 0:02:45.5]} 8... Bd6 {[%clk 0:01:59.9]} 9. Bxd6 {[%clk 0:02:40.6]} 9...
Qxd6 {[%clk 0:01:57.2]} 10. Bd3 {[%clk 0:02:24.7]} 10... Qe6+ {[%clk 0:01:39.7]}
11. Kf2 {[%clk 0:02:22.1]} 11... Bxd3 {[%clk 0:01:39.8]} 12. Qxd3 {[%clk
0:02:06.3]} 12... O-O {[%clk 0:01:38.5]} 13. c4 {[%clk 0:01:58.9]} 13... Nd7
{[%clk 0:01:36.5]} 14. Rae1 {[%clk 0:01:55.5]} 14... Qf6 {[%clk 0:01:35.1]} 15.
Re4 {[%clk 0:01:47.2]} 15... Rad8 {[%clk 0:01:32.3]} 16. Qe3 {[%clk 0:01:27]}
16... h6 {[%clk 0:01:27.5]} 17. Re1 {[%clk 0:01:15.1]} 17... a5 {[%clk
0:01:17.6]} 18. b3 {[%clk 0:01:11.5]} 18... Qd6 {[%clk 0:01:12.2]} 19. h3 {[%clk
0:00:58.4]} 19... Nf6 {[%clk 0:01:06.2]} 20. Re5 {[%clk 0:00:58.4]} 20... Rfe8
{[%clk 0:01:03.8]} 21. g4 {[%clk 0:00:42.9]} 21... Qd7 {[%clk 0:00:56.2]} 22.
Qf4 {[%clk 0:00:32.7]} 22... Rxe5 {[%clk 0:00:53.9]} 23. Rxe5 {[%clk 0:00:32.4]}
23... Nh7 {[%clk 0:00:50]} 24. Qe3 {[%clk 0:00:26.9]} 24... Nf8 {[%clk
0:00:43.2]} 25. Re7 {[%clk 0:00:18]} 25... Qd6 {[%clk 0:00:41.4]} 26. c5 {[%clk
0:00:18.1]} 26... Qc6 {[%clk 0:00:35.8]} 27. Rxf7 {[%clk 0:00:13.3]} 27... Re8
{[%clk 0:00:27.1]} 28. Re7 {[%clk 0:00:12.9]} 28... Rd8 {[%clk 0:00:22.6]} 29.
Qf4 {[%clk 0:00:09]} 29... Ng6 {[%clk 0:00:21.2]} 30. Qf7+ {[%clk 0:00:08.4]}
1-0

[Event "*** SCC Grand Prix: Titled Tuesday Blitz"]
[Site "Chess.com"]
[Date "2020.09.08"]
[Round "5"]
[White "politeplayer"]
[Black "Happy1712Drummer"]
[Result "0-1"]
[WhiteElo "2244"]
[BlackElo "2414"]
[TimeControl "180+1"]
[EndTime "10:56:12 PDT"]
[Termination "Happy1712Drummer won on time"]

1. e4 {[%clk 0:03:00.9]} 1... e6 {[%clk 0:02:56]} 2. d4 {[%clk 0:02:59.3]} 2...
d5 {[%clk 0:02:56.9]} 3. exd5 {[%clk 0:02:59.4]} 3... Qxd5 {[%clk 0:02:50.3]} 4.
Nf3 {[%clk 0:02:57.7]} 4... c5 {[%clk 0:02:43.3]} 5. Nc3 {[%clk 0:02:54.7]} 5...
Qd8 {[%clk 0:02:34.3]} 6. d5 {[%clk 0:02:54.6]} 6... exd5 {[%clk 0:02:21.7]} 7.
Nxd5 {[%clk 0:02:51.8]} 7... Be6 {[%clk 0:02:14.7]} 8. Bb5+ {[%clk 0:02:35]}
8... Nd7 {[%clk 0:02:12.4]} 9. O-O {[%clk 0:02:00.3]} 9... a6 {[%clk 0:02:09.9]}
10. Bxd7+ {[%clk 0:01:52.3]} 10... Qxd7 {[%clk 0:02:04]} 11. Re1 {[%clk
0:01:43.3]} 11... Rd8 {[%clk 0:01:59]} 12. c4 {[%clk 0:01:31]} 12... Bd6 {[%clk
0:01:54.6]} 13. Bg5 {[%clk 0:01:03.6]} 13... Ne7 {[%clk 0:01:51.2]} 14. Ne5
{[%clk 0:00:36.1]} 14... Qc8 {[%clk 0:01:00.4]} 15. Qh5 {[%clk 0:00:18.2]} 15...
Bxd5 {[%clk 0:00:52.2]} 16. cxd5 {[%clk 0:00:14.3]} 16... O-O {[%clk 0:00:51.6]}
17. Ng4 {[%clk 0:00:10.5]} 17... Qf5 {[%clk 0:00:40.3]} 18. Ne3 {[%clk
0:00:03.3]} 18... Qg6 {[%clk 0:00:30.9]} 19. Qxg6 {[%clk 0:00:02.6]} 19... hxg6
{[%clk 0:00:24.9]} 20. Nc4 {[%clk 0:00:02.6]} 20... Nxd5 {[%clk 0:00:18.9]} 21.
Nxd6 {[%clk 0:00:02.2]} 21... Rxd6 {[%clk 0:00:18.2]} 22. Rad1 {[%clk
0:00:02.5]} 22... f6 {[%clk 0:00:17.5]} 23. Bf4 {[%clk 0:00:02.6]} 23... Rd7
{[%clk 0:00:16.6]} 24. Bg3 {[%clk 0:00:02.6]} 24... Rfd8 {[%clk 0:00:16.5]} 25.
Rd2 {[%clk 0:00:02.7]} 25... Kf7 {[%clk 0:00:15.9]} 26. Ree2 {[%clk 0:00:02.1]}
26... Nb6 {[%clk 0:00:14.9]} 0-1